[Event "Titled Tuesday Blitz April 4 Early 2023"]
[White "Rosenberg, Evan S"]
[Black "Toktomushev, Teimur"]
[WhiteFideId "2019299"]
[BlackFideId "14176726"]
[WhiteElo "2227"]
[BlackElo "2116"]
[Result "0-1"]
[Round "09"]
[TimeControl "180+2"]
[Date "2023.04.04"]
[WhiteClock "0:00:10"]
[BlackClock "0:00:04"]

1. d4 {[%clk 0:03:00]}  d5 {[%clk 0:02:59]} 2. Nf3 {[%clk 0:03:01]}  Nf6 {[%clk 0:02:57]} 3. c3 {[%clk 0:03:01]}  c5 {[%clk 0:02:54]} 4. dxc5 {[%clk 0:03:01]}  e6 {[%clk 0:02:54]} 5. Be3 {[%clk 0:03:02]}  Nc6 {[%clk 0:02:50]} 6. b4 {[%clk 0:03:00]}  Ng4 {[%clk 0:02:38]} 7. Bg5 {[%clk 0:02:40]}  f6 {[%clk 0:02:34]} 8. Bh4 {[%clk 0:01:53]}  a5 {[%clk 0:02:30]} 9. h3 {[%clk 0:01:50]}  Nge5 {[%clk 0:02:14]} 10. Nxe5 {[%clk 0:01:50]}  Nxe5 {[%clk 0:02:15]} 11. e4 {[%clk 0:01:44]}  axb4 {[%clk 0:02:00]} 12. cxb4 {[%clk 0:01:42]}  dxe4 {[%clk 0:01:41]} 13. Qxd8+ {[%clk 0:01:36]}  Kxd8 {[%clk 0:01:42]} 14. Nc3 {[%clk 0:01:35]}  b6 {[%clk 0:01:39]} 15. Rd1+ {[%clk 0:01:00]}  Kc7 {[%clk 0:01:29]} 16. Bg3 {[%clk 0:00:49]}  bxc5 {[%clk 0:01:24]} 17. Bxe5+ {[%clk 0:00:49]}  fxe5 {[%clk 0:01:24]} 18. b5 {[%clk 0:00:43]}  Ra3 {[%clk 0:00:07]} 19. Rc1 {[%clk 0:00:36]}  g6 {[%clk 0:00:04]} 20. Bc4 {[%clk 0:00:35]}  Bh6 {[%clk 0:00:04]} 21. Rc2 {[%clk 0:00:34]}  Bb7 {[%clk 0:00:03]} 22. O-O {[%clk 0:00:33]}  Rd8 {[%clk 0:00:03]} 23. Rb1 {[%clk 0:00:31]}  Rd2 {[%clk 0:00:03]} 24. b6+ {[%clk 0:00:29]}  Kb8 {[%clk 0:00:02]} 25. Rxd2 {[%clk 0:00:26]}  Bxd2 {[%clk 0:00:03]} 26. Nb5 {[%clk 0:00:25]}  Ra4 {[%clk 0:00:02]} 27. Bxe6 {[%clk 0:00:24]}  e3 {[%clk 0:00:02]} 28. fxe3 {[%clk 0:00:23]}  Bxe3+ {[%clk 0:00:03]} 29. Kh1 {[%clk 0:00:23]}  Rb4 {[%clk 0:00:03]} 30. Rxb4 {[%clk 0:00:21]}  cxb4 {[%clk 0:00:04]} 31. Bb3 {[%clk 0:00:20]}  Bxb6 {[%clk 0:00:04]} 32. Nd6 {[%clk 0:00:20]}  Bc5 {[%clk 0:00:02]} 33. Nxb7 {[%clk 0:00:19]}  Kxb7 {[%clk 0:00:03]} 34. g4 {[%clk 0:00:19]}  Kc6 {[%clk 0:00:03]} 35. Kg2 {[%clk 0:00:20]}  e4 {[%clk 0:00:03]} 36. Kf1 {[%clk 0:00:19]}  Kd6 {[%clk 0:00:02]} 37. Ke2 {[%clk 0:00:19]}  Ke5 {[%clk 0:00:03]} 38. h4 {[%clk 0:00:17]}  Kf4 {[%clk 0:00:03]} 39. h5 {[%clk 0:00:16]}  Kxg4 {[%clk 0:00:02]} 40. hxg6 {[%clk 0:00:16]}  hxg6 {[%clk 0:00:03]} 41. Be6+ {[%clk 0:00:16]}  Kf4 {[%clk 0:00:03]} 42. Bh3 {[%clk 0:00:15]}  g5 {[%clk 0:00:03]} 43. Bg2 {[%clk 0:00:14]}  g4 {[%clk 0:00:04]} 44. Bh1 {[%clk 0:00:14]}  Bd4 {[%clk 0:00:02]} 45. Bg2 {[%clk 0:00:14]}  Bc3 {[%clk 0:00:03]} 46. Bh1 {[%clk 0:00:13]}  e3 {[%clk 0:00:03]} 47. Bg2 {[%clk 0:00:12]}  Bd2 {[%clk 0:00:04]} 48. Bh1 {[%clk 0:00:12]}  Kg3 {[%clk 0:00:04]} 49. Kf1 {[%clk 0:00:11]}  Kh2 {[%clk 0:00:03]} 50. Be4 {[%clk 0:00:11]}  g3 {[%clk 0:00:03]} 51. Bf3 {[%clk 0:00:10]}  Bc1 {[%clk 0:00:02]} 52. Be4 {[%clk 0:00:10]}  g2+ {[%clk 0:00:02]} 53. Bxg2 {[%clk 0:00:10]}  e2+ {[%clk 0:00:03]} 54. Kxe2 {[%clk 0:00:10]}  Kxg2 {[%clk 0:00:03]} 55. Kd1 {[%clk 0:00:09]}  Ba3 {[%clk 0:00:04]} 56. Ke2 {[%clk 0:00:09]}  Kg3 {[%clk 0:00:04]} 57. Ke3 {[%clk 0:00:09]}  Bb2 {[%clk 0:00:04]} 58. Ke4 {[%clk 0:00:09]}  Kf2 {[%clk 0:00:03]} 59. Kd3 {[%clk 0:00:08]}  Ba3 {[%clk 0:00:03]} 60. Kd2 {[%clk 0:00:08]}  Kf3 {[%clk 0:00:04]} 61. Kd3 {[%clk 0:00:08]}  Bb2 {[%clk 0:00:03]} 62. Kc2 {[%clk 0:00:09]}  Ba3 {[%clk 0:00:03]} 63. Kd3 {[%clk 0:00:09]}  Kf4 {[%clk 0:00:03]} 64. Kd4 {[%clk 0:00:09]}  Kf5 {[%clk 0:00:04]} 65. Kd5 {[%clk 0:00:10]}  Kf6 {[%clk 0:00:04]} 66. Kd6 {[%clk 0:00:10]}  b3+ {[%clk 0:00:04]} 0-1


[Site "https://www.chess.com"]

[Event "Titled Tuesday Blitz April 4 Early 2023"]
[White "Aponte Ramos, Argimiro"]
[Black "Pranav Anand"]
[WhiteFideId "3900568"]
[BlackFideId "46626786"]
[WhiteElo "2216"]
[BlackElo "2389"]
[Result "0-1"]
[Round "09"]
[TimeControl "180+2"]
[Date "2023.04.04"]
[WhiteClock "0:00:01"]
[BlackClock "0:01:00"]

1. g4 {[%clk 0:03:00]}  d6 {[%clk 0:02:56]} 2. Bg2 {[%clk 0:02:58]}  c6 {[%clk 0:02:56]} 3. g5 {[%clk 0:02:58]}  h6 {[%clk 0:02:56]} 4. h4 {[%clk 0:02:59]}  e5 {[%clk 0:02:55]} 5. d3 {[%clk 0:02:57]}  Be6 {[%clk 0:02:55]} 6. c4 {[%clk 0:02:56]}  Ne7 {[%clk 0:02:55]} 7. Nc3 {[%clk 0:02:54]}  Nf5 {[%clk 0:02:55]} 8. Nf3 {[%clk 0:02:52]}  Nd7 {[%clk 0:02:53]} 9. Bd2 {[%clk 0:02:50]}  Be7 {[%clk 0:02:51]} 10. b4 {[%clk 0:02:48]}  Qc7 {[%clk 0:02:41]} 11. b5 {[%clk 0:02:43]}  Rc8 {[%clk 0:02:39]} 12. bxc6 {[%clk 0:02:42]}  bxc6 {[%clk 0:02:39]} 13. Rb1 {[%clk 0:02:40]}  h5 {[%clk 0:02:31]} 14. Rb2 {[%clk 0:02:15]}  Nc5 {[%clk 0:02:30]} 15. Qb1 {[%clk 0:02:13]}  O-O {[%clk 0:02:27]} 16. Be3 {[%clk 0:01:56]}  Nxe3 {[%clk 0:02:25]} 17. fxe3 {[%clk 0:01:57]}  Rb8 {[%clk 0:02:26]} 18. Kf2 {[%clk 0:01:51]}  Rxb2 {[%clk 0:02:09]} 19. Qxb2 {[%clk 0:01:52]}  Rb8 {[%clk 0:02:10]} 20. Qc2 {[%clk 0:01:51]}  d5 {[%clk 0:02:06]} 21. cxd5 {[%clk 0:01:36]}  cxd5 {[%clk 0:02:07]} 22. Rc1 {[%clk 0:01:35]}  e4 {[%clk 0:02:04]} 23. dxe4 {[%clk 0:01:15]}  dxe4 {[%clk 0:02:02]} 24. Nd4 {[%clk 0:01:04]}  Bd6 {[%clk 0:01:33]} 25. Nxe4 {[%clk 0:00:55]}  Nxe4+ {[%clk 0:01:25]} 26. Bxe4 {[%clk 0:00:56]}  Qd7 {[%clk 0:01:14]} 27. Qc6 {[%clk 0:00:42]}  Qe7 {[%clk 0:01:09]} 28. Bf5 {[%clk 0:00:23]}  Bxa2 {[%clk 0:01:02]} 29. Qc8+ {[%clk 0:00:11]}  Rxc8 {[%clk 0:01:02]} 30. Rxc8+ {[%clk 0:00:11]}  Qf8 {[%clk 0:01:03]} 31. Rxf8+ {[%clk 0:00:11]}  Bxf8 {[%clk 0:01:04]} 32. g6 {[%clk 0:00:10]}  a5 {[%clk 0:01:02]} 33. gxf7+ {[%clk 0:00:05]}  Bxf7 {[%clk 0:01:03]} 34. Bd7 {[%clk 0:00:04]}  Be7 {[%clk 0:01:02]} 35. Nf5 {[%clk 0:00:01]}  Bc5 {[%clk 0:01:00]} 0-1


[Site "https://www.chess.com"]

[Event "Titled Tuesday Blitz April 4 Early 2023"]
[White "Klepikov, Nikita"]
[Black "EREBUNI91"]
[WhiteFideId "24145220"]
[WhiteElo "2025"]
[BlackElo "2635"]
[Result "0-1"]
[Round "09"]
[TimeControl "180+2"]
[Date "2023.04.04"]
[WhiteClock "0:00:01"]
[BlackClock "0:02:09"]

1. e4 {[%clk 0:03:00]}  c5 {[%clk 0:02:59]} 2. Nf3 {[%clk 0:03:00]}  e6 {[%clk 0:02:59]} 3. d4 {[%clk 0:02:59]}  cxd4 {[%clk 0:03:00]} 4. Nxd4 {[%clk 0:03:00]}  a6 {[%clk 0:03:01]} 5. Nc3 {[%clk 0:03:00]}  b5 {[%clk 0:03:01]} 6. Bd3 {[%clk 0:02:55]}  Bc5 {[%clk 0:03:01]} 7. Nb3 {[%clk 0:02:49]}  Be7 {[%clk 0:03:01]} 8. O-O {[%clk 0:02:48]}  Bb7 {[%clk 0:03:01]} 9. e5 {[%clk 0:02:13]}  Nc6 {[%clk 0:03:00]} 10. f4 {[%clk 0:02:01]}  h5 {[%clk 0:02:54]} 11. Ne4 {[%clk 0:01:54]}  Qc7 {[%clk 0:02:49]} 12. a4 {[%clk 0:01:35]}  b4 {[%clk 0:02:48]} 13. a5 {[%clk 0:01:22]}  Nh6 {[%clk 0:02:47]} 14. Be3 {[%clk 0:01:19]}  Nf5 {[%clk 0:02:46]} 15. Bb6 {[%clk 0:01:19]}  Qc8 {[%clk 0:02:44]} 16. Nec5 {[%clk 0:00:53]}  Ne3 {[%clk 0:02:42]} 17. Qd2 {[%clk 0:00:33]}  Nxf1 {[%clk 0:02:42]} 18. Rxf1 {[%clk 0:00:34]}  g6 {[%clk 0:02:42]} 19. Nxb7 {[%clk 0:00:18]}  Qxb7 {[%clk 0:02:42]} 20. Be4 {[%clk 0:00:17]}  O-O {[%clk 0:02:36]} 21. g4 {[%clk 0:00:15]}  hxg4 {[%clk 0:02:34]} 22. Qe2 {[%clk 0:00:15]}  Kg7 {[%clk 0:02:34]} 23. Qxg4 {[%clk 0:00:15]}  Rh8 {[%clk 0:02:34]} 24. Kh1 {[%clk 0:00:09]}  Rh4 {[%clk 0:02:34]} 25. Qg3 {[%clk 0:00:07]}  Rah8 {[%clk 0:02:34]} 26. Rf2 {[%clk 0:00:08]}  Qc8 {[%clk 0:02:27]} 27. Rg2 {[%clk 0:00:07]}  R8h6 {[%clk 0:02:26]} 28. Qe3 {[%clk 0:00:05]}  Rh3 {[%clk 0:02:24]} 29. Qe2 {[%clk 0:00:05]}  Bd8 {[%clk 0:02:19]} 30. Bf2 {[%clk 0:00:01]}  Nxa5 {[%clk 0:02:15]} 31. Bd3 {[%clk 0:00:01]}  Nxb3 {[%clk 0:02:14]} 32. Bxa6 {[%clk 0:00:01]}  Nc1 {[%clk 0:02:11]} 33. Qf1 {[%clk 0:00:01]}  Qxc2 {[%clk 0:02:10]} 34. Bd4 {[%clk 0:00:01]}  Rxh2+ {[%clk 0:02:09]} 0-1


[Site "https://www.chess.com"]

[Event "Titled Tuesday Blitz April 4 Early 2023"]
[White "Skaric, Djuro"]
[Black "Vlassov, Nikolai"]
[WhiteFideId "934569"]
[BlackFideId "4103360"]
[WhiteElo "2282"]
[BlackElo "2324"]
[Result "0-1"]
[Round "09"]
[TimeControl "180+2"]
[Date "2023.04.04"]
[WhiteClock "0:01:12"]
[BlackClock "0:00:21"]

1. g3 {[%clk 0:03:00]}  h5 {[%clk 0:02:59]} 2. Bg2 {[%clk 0:03:00]}  h4 {[%clk 0:02:59]} 3. gxh4 {[%clk 0:03:01]}  e5 {[%clk 0:02:59]} 4. d4 {[%clk 0:03:02]}  exd4 {[%clk 0:02:59]} 5. Nf3 {[%clk 0:03:02]}  Nc6 {[%clk 0:02:56]} 6. c3 {[%clk 0:03:02]}  dxc3 {[%clk 0:02:52]} 7. Nxc3 {[%clk 0:03:02]}  Bb4 {[%clk 0:02:51]} 8. O-O {[%clk 0:02:58]}  Bxc3 {[%clk 0:02:46]} 9. bxc3 {[%clk 0:02:58]}  d6 {[%clk 0:02:46]} 10. Bg5 {[%clk 0:02:57]}  f6 {[%clk 0:02:44]} 11. Qd3 {[%clk 0:02:40]}  Nge7 {[%clk 0:02:42]} 12. Bf4 {[%clk 0:02:38]}  Ne5 {[%clk 0:02:39]} 13. Qb5+ {[%clk 0:02:35]}  c6 {[%clk 0:02:37]} 14. Qb1 {[%clk 0:02:29]}  Qb6 {[%clk 0:02:12]} 15. Qc2 {[%clk 0:01:52]}  Bf5 {[%clk 0:01:54]} 16. e4 {[%clk 0:01:47]}  Bg4 {[%clk 0:01:51]} 17. Nd4 {[%clk 0:01:46]}  Rxh4 {[%clk 0:01:45]} 18. Bg3 {[%clk 0:01:45]}  Rh5 {[%clk 0:01:37]} 19. Rab1 {[%clk 0:01:44]}  Qa6 {[%clk 0:01:29]} 20. f4 {[%clk 0:01:42]}  Nc4 {[%clk 0:01:24]} 21. f5 {[%clk 0:01:41]}  Kf7 {[%clk 0:00:53]} 22. Rb4 {[%clk 0:01:33]}  b5 {[%clk 0:00:52]} 23. e5 {[%clk 0:01:25]}  dxe5 {[%clk 0:00:42]} 24. Nxc6 {[%clk 0:01:25]}  Nxc6 {[%clk 0:00:41]} 25. Rb3 {[%clk 0:01:18]}  Ne3 {[%clk 0:00:36]} 26. Qd3 {[%clk 0:01:17]}  Nxg2 {[%clk 0:00:30]} 27. Qd7+ {[%clk 0:01:17]}  Ne7 {[%clk 0:00:26]} 28. Rxb5 {[%clk 0:01:16]}  Qc6 {[%clk 0:00:20]} 29. Qxc6 {[%clk 0:01:13]}  Nxc6 {[%clk 0:00:21]} 30. Rb7+ {[%clk 0:01:13]}  Kg8 {[%clk 0:00:20]} 31. Kxg2 {[%clk 0:01:13]}  Bh3+ {[%clk 0:00:21]} 32. Kf2 {[%clk 0:01:12]}  Bxf1 {[%clk 0:00:21]} 33. Kxf1 {[%clk 0:01:12]}  Rxf5+ {[%clk 0:00:21]} 0-1


[Site "https://www.chess.com"]

[Event "Titled Tuesday Blitz April 4 Early 2023"]
[White "I_KID_you_not"]
[Black "Fiorito, Joaquin"]
[BlackFideId "180173"]
[WhiteElo "2340"]
[BlackElo "2157"]
[Result "0-1"]
[Round "09"]
[TimeControl "180+2"]
[Date "2023.04.04"]
[WhiteClock "0:00:43"]
[BlackClock "0:00:12"]

1. e4 {[%clk 0:03:00]}  c6 {[%clk 0:02:59]} 2. d4 {[%clk 0:03:00]}  d5 {[%clk 0:03:00]} 3. exd5 {[%clk 0:03:01]}  cxd5 {[%clk 0:03:00]} 4. Bd3 {[%clk 0:03:01]}  Nc6 {[%clk 0:03:00]} 5. c3 {[%clk 0:03:02]}  Nf6 {[%clk 0:03:00]} 6. Bf4 {[%clk 0:03:02]}  Bg4 {[%clk 0:02:58]} 7. Qb3 {[%clk 0:03:02]}  Na5 {[%clk 0:02:57]} 8. Qa4+ {[%clk 0:03:01]}  Bd7 {[%clk 0:02:58]} 9. Qc2 {[%clk 0:03:01]}  Qb6 {[%clk 0:02:58]} 10. a4 {[%clk 0:03:01]}  Rc8 {[%clk 0:02:53]} 11. Nd2 {[%clk 0:02:54]}  Nc6 {[%clk 0:02:37]} 12. Qb1 {[%clk 0:02:52]}  e5 {[%clk 0:02:37]} 13. a5 {[%clk 0:02:44]}  Qc7 {[%clk 0:02:23]} 14. dxe5 {[%clk 0:02:40]}  Nxe5 {[%clk 0:02:16]} 15. Ne2 {[%clk 0:02:37]}  Bd6 {[%clk 0:02:13]} 16. Bg3 {[%clk 0:02:33]}  O-O {[%clk 0:02:09]} 17. O-O {[%clk 0:02:32]}  Rfe8 {[%clk 0:01:45]} 18. Re1 {[%clk 0:02:32]}  h5 {[%clk 0:01:33]} 19. Bf5 {[%clk 0:02:24]}  g6 {[%clk 0:00:39]} 20. Bxd7 {[%clk 0:02:21]}  Qxd7 {[%clk 0:00:40]} 21. Nd4 {[%clk 0:02:16]}  Neg4 {[%clk 0:00:35]} 22. Qd3 {[%clk 0:01:49]}  h4 {[%clk 0:00:26]} 23. Bxd6 {[%clk 0:01:47]}  Qxd6 {[%clk 0:00:27]} 24. Qh3 {[%clk 0:01:27]}  Qf4 {[%clk 0:00:21]} 25. N2f3 {[%clk 0:01:09]}  Ne4 {[%clk 0:00:13]} 26. g3 {[%clk 0:00:57]}  hxg3 {[%clk 0:00:12]} 27. hxg3 {[%clk 0:00:58]}  Ng5 {[%clk 0:00:12]} 28. Nxg5 {[%clk 0:00:45]}  Qxf2+ {[%clk 0:00:12]} 29. Kh1 {[%clk 0:00:44]}  Rxe1+ {[%clk 0:00:13]} 30. Rxe1 {[%clk 0:00:43]}  Qxe1+ {[%clk 0:00:14]} 31. Kg2 {[%clk 0:00:43]}  Qf2+ {[%clk 0:00:12]} 32. Kh1 {[%clk 0:00:43]}  Qe1+ {[%clk 0:00:12]} 33. Kg2 {[%clk 0:00:43]}  Qd2+ {[%clk 0:00:12]} 0-1


[Site "https://www.chess.com"]

[Event "Titled Tuesday Blitz April 4 Early 2023"]
[White "Dobre, Claudiu-Cristian"]
[Black "Kujawski, Adam"]
[WhiteFideId "1211854"]
[BlackFideId "1100920"]
[WhiteElo "2207"]
[BlackElo "2054"]
[Result "1-0"]
[Round "09"]
[TimeControl "180+2"]
[Date "2023.04.04"]
[WhiteClock "0:00:08"]
[BlackClock "0:00:09"]

1. e4 {[%clk 0:03:00]}  e5 {[%clk 0:02:56]} 2. Nf3 {[%clk 0:03:00]}  Nc6 {[%clk 0:02:56]} 3. Bc4 {[%clk 0:02:58]}  Nf6 {[%clk 0:02:56]} 4. d3 {[%clk 0:02:58]}  d5 {[%clk 0:02:56]} 5. exd5 {[%clk 0:02:58]}  Nxd5 {[%clk 0:02:56]} 6. O-O {[%clk 0:02:57]}  Nb6 {[%clk 0:02:55]} 7. Bb5 {[%clk 0:02:55]}  Bd6 {[%clk 0:02:55]} 8. Re1 {[%clk 0:02:34]}  f6 {[%clk 0:02:54]} 9. d4 {[%clk 0:02:23]}  O-O {[%clk 0:02:53]} 10. Bxc6 {[%clk 0:02:22]}  bxc6 {[%clk 0:02:54]} 11. dxe5 {[%clk 0:02:18]}  fxe5 {[%clk 0:02:55]} 12. Bg5 {[%clk 0:02:13]}  Qe8 {[%clk 0:02:53]} 13. Bh4 {[%clk 0:01:15]}  Qg6 {[%clk 0:02:49]} 14. Nbd2 {[%clk 0:01:12]}  Bf5 {[%clk 0:02:49]} 15. Bg3 {[%clk 0:01:09]}  Bxc2 {[%clk 0:02:46]} 16. Qc1 {[%clk 0:01:08]}  Bd3 {[%clk 0:02:03]} 17. Bxe5 {[%clk 0:00:58]}  Rae8 {[%clk 0:01:39]} 18. Qxc6 {[%clk 0:00:54]}  Bxe5 {[%clk 0:01:34]} 19. Qxg6 {[%clk 0:00:53]}  Bxh2+ {[%clk 0:01:33]} 20. Kxh2 {[%clk 0:00:51]}  hxg6 {[%clk 0:01:33]} 21. Rac1 {[%clk 0:00:39]}  Rxe1 {[%clk 0:01:30]} 22. Rxe1 {[%clk 0:00:26]}  Nc4 {[%clk 0:01:28]} 23. Nxc4 {[%clk 0:00:20]}  Bxc4 {[%clk 0:01:28]} 24. Re7 {[%clk 0:00:19]}  Bxa2 {[%clk 0:01:22]} 25. Rxc7 {[%clk 0:00:19]}  Ra8 {[%clk 0:01:21]} 26. Ne5 {[%clk 0:00:18]}  g5 {[%clk 0:01:19]} 27. Kg3 {[%clk 0:00:17]}  Be6 {[%clk 0:01:15]} 28. Nc6 {[%clk 0:00:17]}  a5 {[%clk 0:01:13]} 29. f3 {[%clk 0:00:15]}  a4 {[%clk 0:01:11]} 30. Re7 {[%clk 0:00:15]}  Bd5 {[%clk 0:01:07]} 31. Ne5 {[%clk 0:00:14]}  Rb8 {[%clk 0:01:00]} 32. Rd7 {[%clk 0:00:15]}  Bb3 {[%clk 0:00:49]} 33. Nc6 {[%clk 0:00:14]}  Re8 {[%clk 0:00:47]} 34. Ne7+ {[%clk 0:00:13]}  Kf7 {[%clk 0:00:41]} 35. Nc8+ {[%clk 0:00:09]}  Ke6 {[%clk 0:00:36]} 36. Rd6+ {[%clk 0:00:06]}  Ke5 {[%clk 0:00:36]} 37. Rc6 {[%clk 0:00:07]}  Kd4 {[%clk 0:00:32]} 38. Rc7 {[%clk 0:00:07]}  Re2 {[%clk 0:00:25]} 39. Nb6 {[%clk 0:00:07]}  Rxb2 {[%clk 0:00:22]} 40. Rd7+ {[%clk 0:00:07]}  Kc5 {[%clk 0:00:21]} 41. Nxa4+ {[%clk 0:00:07]}  Bxa4 {[%clk 0:00:21]} 42. Rxg7 {[%clk 0:00:07]}  Bb5 {[%clk 0:00:17]} 43. Rxg5+ {[%clk 0:00:08]}  Kd6 {[%clk 0:00:18]} 44. Kf4 {[%clk 0:00:08]}  Bf1 {[%clk 0:00:17]} 45. g4 {[%clk 0:00:08]}  Ke6 {[%clk 0:00:17]} 46. Rf5 {[%clk 0:00:08]}  Rb4+ {[%clk 0:00:17]} 47. Kg5 {[%clk 0:00:08]}  Be2 {[%clk 0:00:17]} 48. f4 {[%clk 0:00:09]}  Rc4 {[%clk 0:00:15]} 49. Re5+ {[%clk 0:00:09]}  Kd6 {[%clk 0:00:14]} 50. Rxe2 {[%clk 0:00:09]}  Rc1 {[%clk 0:00:11]} 51. f5 {[%clk 0:00:10]}  Rg1 {[%clk 0:00:10]} 52. f6 {[%clk 0:00:08]}  Kd7 {[%clk 0:00:10]} 53. Re5 {[%clk 0:00:07]}  Kd6 {[%clk 0:00:09]} 54. f7 {[%clk 0:00:08]} 1-0


[Site "https://www.chess.com"]

[Event "Titled Tuesday Blitz April 4 Early 2023"]
[White "Orujov2008"]
[Black "Erzhanov, Arman"]
[BlackFideId "4138821"]
[WhiteElo "2289"]
[BlackElo "2138"]
[Result "0-1"]
[Round "09"]
[TimeControl "180+2"]
[Date "2023.04.04"]
[WhiteClock "0:00:02"]
[BlackClock "0:01:26"]

1. e4 {[%clk 0:03:00]}  d6 {[%clk 0:03:00]} 2. d4 {[%clk 0:03:00]}  Nf6 {[%clk 0:03:01]} 3. Nc3 {[%clk 0:03:01]}  e5 {[%clk 0:03:01]} 4. Nf3 {[%clk 0:02:59]}  Nbd7 {[%clk 0:03:01]} 5. Bc4 {[%clk 0:02:58]}  Be7 {[%clk 0:03:02]} 6. O-O {[%clk 0:02:58]}  O-O {[%clk 0:03:02]} 7. h3 {[%clk 0:02:58]}  c6 {[%clk 0:03:03]} 8. Be3 {[%clk 0:02:58]}  b5 {[%clk 0:03:03]} 9. Bd3 {[%clk 0:02:54]}  a6 {[%clk 0:03:03]} 10. a4 {[%clk 0:02:52]}  b4 {[%clk 0:02:56]} 11. Ne2 {[%clk 0:02:50]}  Bb7 {[%clk 0:02:56]} 12. Ng3 {[%clk 0:02:49]}  Re8 {[%clk 0:02:55]} 13. Nf5 {[%clk 0:02:46]}  Bf8 {[%clk 0:02:55]} 14. Bc4 {[%clk 0:02:42]}  d5 {[%clk 0:02:47]} 15. exd5 {[%clk 0:02:36]}  cxd5 {[%clk 0:02:47]} 16. Bb3 {[%clk 0:02:34]}  e4 {[%clk 0:02:45]} 17. Nd2 {[%clk 0:02:33]}  g6 {[%clk 0:02:39]} 18. Ng3 {[%clk 0:02:28]}  Bd6 {[%clk 0:02:36]} 19. Ne2 {[%clk 0:02:15]}  Nh5 {[%clk 0:02:33]} 20. Re1 {[%clk 0:02:12]}  f5 {[%clk 0:02:33]} 21. Bh6 {[%clk 0:01:38]}  Qf6 {[%clk 0:02:21]} 22. Nc1 {[%clk 0:01:17]}  Nf4 {[%clk 0:02:15]} 23. Bxf4 {[%clk 0:01:14]}  Bxf4 {[%clk 0:02:15]} 24. Nf1 {[%clk 0:01:08]}  Bc7 {[%clk 0:02:06]} 25. c3 {[%clk 0:00:57]}  bxc3 {[%clk 0:02:03]} 26. bxc3 {[%clk 0:00:54]}  Rab8 {[%clk 0:02:02]} 27. c4 {[%clk 0:00:51]}  Qe6 {[%clk 0:02:01]} 28. cxd5 {[%clk 0:00:51]}  Bxd5 {[%clk 0:02:01]} 29. Bxd5 {[%clk 0:00:46]}  Qxd5 {[%clk 0:02:02]} 30. Ne2 {[%clk 0:00:43]}  Ba5 {[%clk 0:02:01]} 31. Ne3 {[%clk 0:00:20]}  Qf7 {[%clk 0:01:44]} 32. Rf1 {[%clk 0:00:09]}  Nb6 {[%clk 0:01:45]} 33. Qc2 {[%clk 0:00:06]}  Rec8 {[%clk 0:01:45]} 34. Qa2 {[%clk 0:00:05]}  Nc4 {[%clk 0:01:35]} 35. Nxc4 {[%clk 0:00:03]}  Rxc4 {[%clk 0:01:36]} 36. d5 {[%clk 0:00:02]}  Qxd5 {[%clk 0:01:32]} 37. Rab1 {[%clk 0:00:03]}  Rbc8 {[%clk 0:01:31]} 38. Rfd1 {[%clk 0:00:03]}  Qf7 {[%clk 0:01:31]} 39. Nf4 {[%clk 0:00:02]}  Bc7 {[%clk 0:01:26]} 40. Nd5 {[%clk 0:00:02]}  Be5 {[%clk 0:01:25]} 41. Rbc1 {[%clk 0:00:02]}  Rxc1 {[%clk 0:01:25]} 42. Rxc1 {[%clk 0:00:02]}  Rxc1# {[%clk 0:01:26]} 0-1


[Site "https://www.chess.com"]

[Event "Titled Tuesday Blitz April 4 Early 2023"]
[White "Alberto, Manuel"]
[Black "Deuer, Marius"]
[WhiteFideId "10100148"]
[BlackFideId "16236432"]
[WhiteElo "2166"]
[BlackElo "2163"]
[Result "1-0"]
[Round "09"]
[TimeControl "180+2"]
[Date "2023.04.04"]
[WhiteClock "0:02:05"]
[BlackClock "0:00:15"]

1. e4 {[%clk 0:03:00]}  g6 {[%clk 0:02:39]} 2. d4 {[%clk 0:02:57]}  Bg7 {[%clk 0:02:40]} 3. Nc3 {[%clk 0:02:55]}  d6 {[%clk 0:02:28]} 4. f3 {[%clk 0:02:54]}  Nd7 {[%clk 0:02:23]} 5. Be3 {[%clk 0:02:53]}  e5 {[%clk 0:02:24]} 6. Nge2 {[%clk 0:02:53]}  f5 {[%clk 0:02:24]} 7. exf5 {[%clk 0:02:50]}  gxf5 {[%clk 0:02:21]} 8. dxe5 {[%clk 0:02:49]}  dxe5 {[%clk 0:02:14]} 9. Nc1 {[%clk 0:02:43]}  Ngf6 {[%clk 0:02:05]} 10. Bc4 {[%clk 0:02:41]}  Qe7 {[%clk 0:02:04]} 11. Qe2 {[%clk 0:02:38]}  Nb6 {[%clk 0:01:39]} 12. Bb3 {[%clk 0:02:36]}  c6 {[%clk 0:01:30]} 13. Nd3 {[%clk 0:02:32]}  Nfd5 {[%clk 0:01:06]} 14. Bc5 {[%clk 0:02:30]}  Qf6 {[%clk 0:00:56]} 15. Nxd5 {[%clk 0:02:21]}  Nxd5 {[%clk 0:00:41]} 16. O-O {[%clk 0:02:18]}  Be6 {[%clk 0:00:15]} 17. Rfe1 {[%clk 0:02:14]}  b6 {[%clk 0:00:15]} 18. Bd6 {[%clk 0:02:12]}  e4 {[%clk 0:00:13]} 19. fxe4 {[%clk 0:02:10]}  fxe4 {[%clk 0:00:14]} 20. Qxe4 {[%clk 0:02:10]}  Kd7 {[%clk 0:00:15]} 21. Be5 {[%clk 0:02:05]} 1-0


[Site "https://www.chess.com"]

[Event "Titled Tuesday Blitz April 4 Early 2023"]
[White "Tsotsonava, Elene"]
[Black "Gatterer, Florian"]
[WhiteFideId "13615939"]
[BlackFideId "811688"]
[WhiteElo "1829"]
[BlackElo "2221"]
[Result "0-1"]
[Round "09"]
[TimeControl "180+2"]
[Date "2023.04.04"]
[WhiteClock "0:02:04"]
[BlackClock "0:02:08"]

1. e4 {[%clk 0:03:00]}  c5 {[%clk 0:03:00]} 2. Nf3 {[%clk 0:03:01]}  e6 {[%clk 0:03:00]} 3. d4 {[%clk 0:03:01]}  cxd4 {[%clk 0:03:01]} 4. Nxd4 {[%clk 0:03:01]}  Nf6 {[%clk 0:03:02]} 5. Nc3 {[%clk 0:03:01]}  Nc6 {[%clk 0:03:02]} 6. Ndb5 {[%clk 0:03:01]}  Bc5 {[%clk 0:03:02]} 7. Nd6+ {[%clk 0:02:56]}  Ke7 {[%clk 0:03:02]} 8. Nc4 {[%clk 0:02:56]}  d5 {[%clk 0:03:01]} 9. exd5 {[%clk 0:02:54]}  exd5 {[%clk 0:03:00]} 10. Nd2 {[%clk 0:02:28]}  Ng4 {[%clk 0:02:50]} 11. h3 {[%clk 0:02:05]}  Bxf2+ {[%clk 0:02:29]} 12. Ke2 {[%clk 0:02:04]}  Nd4+ {[%clk 0:02:25]} 13. Kd3 {[%clk 0:02:04]}  Ne5# {[%clk 0:02:08]} 0-1


[Site "https://www.chess.com"]